[Event "15th Golden Prague Rapid Open"]
[Site "Prague"]
[Date "2019.06.30"]
[Round "3.3"]
[White "Rydl, Jiri"]
[Black "Burdik, Lubomir"]
[Result "1-0"]
[ECO "A13"]
[WhiteElo "2422"]
[BlackElo "2132"]
[Annotator "ChessBase"]
[PlyCount "81"]
[EventDate "2019.06.30"]
[EventType "swiss"]
[EventCountry "CZE"]
[SourceTitle "playchess.com"]
[Source "ChessBase"]
[SourceQuality "1"]
[TimeControl "720+3"]

1. c4 {[%emt 0:00:01]} e6 {[%emt 0:00:04]} 2. g3 {[%emt 0:00:05]} d5 {[%emt 0:00:02]} 3. Bg2 {[%emt 0:00:03]} Nf6 {[%emt 0:00:03]} 4. Nf3 {[%emt 0:00:02]} dxc4 {[%emt 0:00:24]} 5. Na3 {[%emt 0:00:04]} c5 {[%emt 0:00:12]} 6. Nxc4 {[%emt 0:00:03]} Nc6 {[%emt 0:00:03]} 7. O-O {[%emt 0:00:04]} Be7 {[%emt 0:00:03]} 8. b3 {[%emt 0:00:08]} Nd5 {[%emt 0:00:53]} 9. Bb2 {[%emt 0:00:16]} Bf6 {[%emt 0:00:02]} 10. d4 {[%emt 0:00:22]} cxd4 {[%emt 0:00:16]} 11. Nxd4 {[%emt 0:00:10]} O-O {[%emt 0:00:59]} 12. Nxc6 {[%emt 0:00:11]} bxc6 {[%emt 0:00:01]} 13. e4 {[%emt 0:00:21]} Bxb2 {[%emt 0:00:24]} 14. Nxb2 {[%emt 0:00:05]} Nb6 {[%emt 0:01:20]} 15. Qc2 {[%emt 0:00:12]} Ba6 {[%emt 0:00:24]} 16. Rfd1 {[%emt 0:00:03]} Qf6 {[%emt 0:00:01]} 17. Rac1 {[%emt 0:00:26]} Rad8 {[%emt 0:00:21]} 18. Nd3 {[%emt 0:01:00]} Bxd3 {[%emt 0:00:38]} 19. Rxd3 {[%emt 0:00:02]} Rxd3 {[%emt 0:00:17]} 20. Qxd3 {[%emt 0:00:02]} Rd8 {[%emt 0:00:03]} 21. Qe2 {[%emt 0:00:14]} e5 {[%emt 0:00:13]} 22. Bf1 {[%emt 0:00:28]} h6 {[%emt 0:00:13]} 23. a4 {[%emt 0:00:34]} Nc8 {[%emt 0:01:27]} 24. Qc2 {[%emt 0:00:38]} Ne7 {[%emt 0:00:08]} 25. Qc5 {[%emt 0:00:03]} Rd7 {[%emt 0:00:20]} 26. b4 {[%emt 0:00:05]} Qd6 {[%emt 0:00:17]} 27. Qxd6 {[%emt 0:00:24]} Rxd6 {[%emt 0:00:01]} 28. Rc5 {[%emt 0:00:02]} f6 {[%emt 0:00:55]} 29. b5 {[%emt 0:00:45]} Kf8 {[%emt 0:00:16]} 30. a5 {[%emt 0:00:11]} Ke8 {[%emt 0:01:42]} 31. b6 {[%emt 0:01:01]} axb6 {[%emt 0:00:01]} 32. axb6 {[%emt 0:00:02]} Rd8 {[%emt 0:00:01]} 33. Ra5 {[%emt 0:02:21]} Rb8 {[%emt 0:00:01]} 34. Ra6 {[%emt 0:00:02]} Nc8 {[%emt 0:00:42]} 35. Bh3 {[%emt 0:00:02]} Nd6 {[%emt 0:00:31]} 36. f3 {[%emt 0:01:05]} Nc4 {[%emt 0:00:07]} 37. Be6 {[%emt 0:00:04]} Nxb6 {[%emt 0:00:22]} 38. Ra7 {[%emt 0:00:02]} Nc8 {[%emt 0:00:02]} 39. Rxg7 {[%emt 0:00:09]} Ne7 {[%emt 0:00:08]} 40. Rh7 {[%emt 0:00:03]} c5 {[%emt 0:00:03]} 41. Rh8+ {[%emt 0:00:03]} 1-0

[Event "15th Golden Prague Rapid Open"]
[Site "Prague"]
[Date "2019.06.30"]
[Round "3.4"]
[White "Benes, Petr"]
[Black "Ralis, Petr"]
[Result "1/2-1/2"]
[ECO "E76"]
[WhiteElo "2103"]
[BlackElo "2207"]
[Annotator "ChessBase"]
[PlyCount "163"]
[EventDate "2019.06.30"]
[EventType "swiss"]
[EventCountry "CZE"]
[SourceTitle "playchess.com"]
[Source "ChessBase"]
[SourceQuality "1"]
[TimeControl "720+3"]

1. c4 {[%emt 0:12:03]} Nf6 {[%emt 0:12:03]} 2. Nc3 {[%emt 0:00:03]} d6 {[%emt 0:00:03]} 3. d4 {[%emt 0:00:03]} g6 {[%emt 0:00:03]} 4. e4 {[%emt 0:00:03]} Bg7 5. f4 {[%emt 0:00:03]} c5 {[%emt 0:00:06]} 6. dxc5 {[%emt 0:00:03]} Qa5 {[%emt 0:00:03]} 7. Bd3 {[%emt 0:00:03]} Qxc5 {[%emt 0:00:03]} 8. Qe2 {[%emt 0:00:03]} Bg4 {[%emt 0:00:03]} 9. Nf3 {[%emt 0:00:03]} Nc6 {[%emt 0:00:03]} 10. Be3 {[%emt 0:00:03]} Qa5 {[%emt 0:00:03]} 11. Rc1 {[%emt 0:00:03]} O-O {[%emt 0:00:03]} 12. O-O {[%emt 0:00:03]} Nd7 {[%emt 0:00:03]} 13. Qf2 {[%emt 0:00:03]} Nc5 {[%emt 0:00:03]} 14. Bb1 {[%emt 0:00:03]} Ne6 {[%emt 0:00:03]} 15. a3 {[%emt 0:00:03]} Bxf3 {[%emt 0:00:03]} 16. Qxf3 {[%emt 0:00:03]} Ned4 {[%emt 0:00:03]} 17. Qd1 {[%emt 0:00:03]} e6 {[%emt 0:00:03]} 18. Ba2 {[%emt 0:00:03]} Rfd8 {[%emt 0:00:03]} 19. Rf2 {[%emt 0:00:03]} a6 {[%emt 0:00:03]} 20. Rd2 {[%emt 0:00:03]} e5 {[%emt 0:00:03]} 21. Nd5 {[%emt 0:00:03]} Rd7 {[%emt 0:00:03]} 22. Rd3 {[%emt 0:00:03]} Re8 {[%emt 0:00:03]} 23. Qg4 {[%emt 0:00:03]} Qd8 {[%emt 0:00:03]} 24. f5 {[%emt 0:00:03]} h5 {[%emt 0:00:03]} 25. Qd1 {[%emt 0:00:03]} gxf5 {[%emt 0:00:03]} 26. exf5 {[%emt 0:00:03]} Nxf5 {[%emt 0:00:03]} 27. Bb6 {[%emt 0:00:03]} Qg5 {[%emt 0:00:03]} 28. Rh3 {[%emt 0:00:03]} h4 {[%emt 0:00:03]} 29. Ne3 {[%emt 0:00:03]} Ncd4 {[%emt 0:00:03]} 30. Nxf5 {[%emt 0:00:03]} Qxc1 {[%emt 0:00:03]} 31. Qxc1 {[%emt 0:00:03]} Ne2+ 32. Kf2 Nxc1 {[%emt 0:00:06]} 33. Bb1 {[%emt 0:00:06]} e4 {[%emt 0:00:03]} 34. Rxh4 {[%emt 0:00:03]} Bxb2 {[%emt 0:00:03]} 35. Rg4+ {[%emt 0:00:03]} Kh7 {[%emt 0:00:03]} 36. Bxe4 {[%emt 0:00:03]} Rxe4 {[%emt 0:00:03]} 37. Rxe4 {[%emt 0:00:03]} d5 {[%emt 0:00:03]} 38. Rg4 {[%emt 0:00:03]} Nd3+ {[%emt 0:00:03]} 39. Ke2 {[%emt 0:00:03]} Nc1+ {[%emt 0:00:03]} 40. Ke3 {[%emt 0:00:03]} f6 {[%emt 0:00:03]} 41. c5 {[%emt 0:00:03]} Be5 {[%emt 0:00:03]} 42. g3 {[%emt 0:00:03]} Nb3 {[%emt 0:00:03]} 43. Rh4+ {[%emt 0:00:03]} Kg8 {[%emt 0:00:03]} 44. Rg4+ {[%emt 0:00:03]} Kh7 {[%emt 0:00:03]} 45. Rh4+ {[%emt 0:00:03]} Kg6 {[%emt 0:00:03]} 46. g4 {[%emt 0:00:03]} d4+ {[%emt 0:00:03]} 47. Kd3 {[%emt 0:00:03]} Nc1+ {[%emt 0:00:03]} 48. Kc2 {[%emt 0:00:03]} Bf4 {[%emt 0:00:03]} 49. Rh3 {[%emt 0:00:03]} d3+ 50. Kd1 Na2 {[%emt 0:00:06]} 51. Ba5 {[%emt 0:00:06]} Kg5 {[%emt 0:00:03]} 52. Nd6 {[%emt 0:00:03]} Kxg4 {[%emt 0:00:03]} 53. Rh8 {[%emt 0:00:03]} Bxd6 {[%emt 0:00:03]} 54. Rg8+ {[%emt 0:00:03]} Kh3 {[%emt 0:00:03]} 55. cxd6 {[%emt 0:00:03]} Rxd6 {[%emt 0:00:03]} 56. Kd2 {[%emt 0:00:03]} b6 {[%emt 0:00:03]} 57. Bb4 {[%emt 0:00:03]} Nxb4 {[%emt 0:00:03]} 58. axb4 Kxh2 {[%emt 0:00:03]} 59. Rg6 {[%emt 0:00:06]} a5 {[%emt 0:00:03]} 60. b5 {[%emt 0:00:03]} a4 {[%emt 0:00:03]} 61. Rg4 f5 {[%emt 0:00:03]} 62. Rxa4 {[%emt 0:00:06]} Kg3 {[%emt 0:00:03]} 63. Rc4 {[%emt 0:00:03]} f4 {[%emt 0:00:03]} 64. Rc6 Rd8 {[%emt 0:00:03]} 65. Rg6+ {[%emt 0:00:06]} Kh2 {[%emt 0:00:03]} 66. Rh6+ {[%emt 0:00:03]} Kg2 67. Rg6+ Kf2 {[%emt 0:00:06]} 68. Rxb6 {[%emt 0:00:06]} f3 {[%emt 0:00:03]} 69. Rf6 {[%emt 0:00:03]} Rb8 {[%emt 0:00:03]} 70. b6 Rd8 {[%emt 0:00:03]} 71. Rg6 {[%emt 0:00:06]} Rd7 {[%emt 0:00:03]} 72. Rc6 {[%emt 0:00:03]} Kg1 {[%emt 0:00:03]} 73. Rc7 {[%emt 0:00:03]} Rd6 {[%emt 0:00:03]} 74. Rg7+ {[%emt 0:00:03]} Kh2 {[%emt 0:00:03]} 75. Rh7+ {[%emt 0:00:03]} Kg1 {[%emt 0:00:03]} 76. Rg7+ Kf1 {[%emt 0:00:03]} 77. b7 {[%emt 0:00:06]} Rb6 {[%emt 0:00:03]} 78. Ke3 {[%emt 0:00:03]} f2 {[%emt 0:00:03]} 79. Rf7 Ke1 {[%emt 0:00:03]} 80. Rxf2 {[%emt 0:00:06]} Rxb7 {[%emt 0:00:03]} 81. Rh2 {[%emt 0:00:03]} Re7+ {[%emt 0:00:03]} 82. Kxd3 {[%emt 0:00:03]} 1/2-1/2

[Event "15th Golden Prague Rapid Open"]
[Site "Prague"]
[Date "2019.06.30"]
[Round "3.5"]
[White "Netusil, Miloslav"]
[Black "Kolbusovsky, Petr"]
[Result "1-0"]
[ECO "D11"]
[WhiteElo "2189"]
[BlackElo "1675"]
[Annotator "ChessBase"]
[PlyCount "49"]
[EventDate "2019.06.30"]
[EventType "swiss"]
[EventCountry "CZE"]
[SourceTitle "playchess.com"]
[Source "ChessBase"]
[SourceQuality "1"]
[TimeControl "720+3"]

1. d4 {[%emt 0:00:00]} Nf6 {[%emt 0:00:00]} 2. Nf3 {[%emt 0:00:00]} d5 {[%emt 0:00:00]} 3. c4 {[%emt 0:00:01]} dxc4 {[%emt 0:00:12]} 4. e3 {[%emt 0:00:04]} b5 {[%emt 0:00:20]} 5. a4 {[%emt 0:00:01]} c6 {[%emt 0:00:07]} 6. axb5 {[%emt 0:00:19]} cxb5 {[%emt 0:00:04]} 7. b3 {[%emt 0:00:01]} e6 {[%emt 0:00:52]} 8. bxc4 {[%emt 0:00:05]} Bb4+ {[%emt 0:00:03]} 9. Bd2 {[%emt 0:00:05]} Bxd2+ {[%emt 0:00:14]} 10. Nbxd2 {[%emt 0:00:02]} bxc4 {[%emt 0:00:16]} 11. Bxc4 {[%emt 0:00:14]} O-O {[%emt 0:00:03]} 12. O-O {[%emt 0:00:01]} Bb7 {[%emt 0:00:12]} 13. Qb1 {[%emt 0:00:12]} Qb6 {[%emt 0:01:05]} 14. Qd3 {[%emt 0:00:08]} Nbd7 {[%emt 0:00:33]} 15. Rab1 {[%emt 0:00:14]} Qc7 {[%emt 0:00:32]} 16. Rfc1 {[%emt 0:00:01]} Rfc8 {[%emt 0:00:36]} 17. Qa3 {[%emt 0:00:01]} Bxf3 {[%emt 0:01:04]} 18. Nxf3 {[%emt 0:00:04]} Qd8 {[%emt 0:00:47]} 19. Ba6 {[%emt 0:00:17]} Rxc1+ {[%emt 0:00:15]} 20. Rxc1 {[%emt 0:00:01]} h6 {[%emt 0:00:55]} 21. h3 {[%emt 0:00:02]} Qb6 {[%emt 0:00:41]} 22. Qa4 {[%emt 0:01:55]} Rd8 {[%emt 0:01:55]} 23. Bd3 {[%emt 0:01:10]} Nd5 {[%emt 0:00:26]} 24. Rc6 {[%emt 0:00:22]} Nc3 {[%emt 0:01:08]} 25. Rxc3 {[%emt 0:00:09]} 1-0

[Event "15th Golden Prague Rapid Open"]
[Site "Prague"]
[Date "2019.06.30"]
[Round "3.6"]
[White "Krnak, Vladimir"]
[Black "Soural, Jan"]
[Result "0-1"]
[ECO "D31"]
[WhiteElo "1691"]
[BlackElo "2196"]
[Annotator "ChessBase"]
[PlyCount "88"]
[EventDate "2019.06.30"]
[EventType "swiss"]
[EventCountry "CZE"]
[SourceTitle "playchess.com"]
[Source "ChessBase"]
[SourceQuality "1"]
[TimeControl "720+3"]

1. d4 {[%emt 0:00:00]} e6 {[%emt 0:00:00]} 2. c4 {[%emt 0:00:03]} d5 {[%emt 0:00:01]} 3. Nc3 {[%emt 0:00:03]} a6 {[%emt 0:00:01]} 4. a4 {[%emt 0:00:09]} Nf6 {[%emt 0:01:24]} 5. Nf3 {[%emt 0:00:24]} c5 {[%emt 0:00:34]} 6. e3 {[%emt 0:00:22]} Nc6 {[%emt 0:00:07]} 7. Bd3 {[%emt 0:00:13]} dxc4 {[%emt 0:00:07]} 8. Bxc4 {[%emt 0:00:03]} cxd4 {[%emt 0:00:01]} 9. exd4 {[%emt 0:00:03]} Nb4 {[%emt 0:00:31]} 10. O-O {[%emt 0:00:17]} Be7 {[%emt 0:00:01]} 11. Bf4 {[%emt 0:00:19]} O-O {[%emt 0:00:15]} 12. Re1 {[%emt 0:00:49]} Nbd5 {[%emt 0:00:48]} 13. Bxd5 {[%emt 0:00:21]} Nxd5 {[%emt 0:00:04]} 14. Bg3 {[%emt 0:00:37]} Nxc3 {[%emt 0:01:00]} 15. bxc3 {[%emt 0:00:02]} Bd7 {[%emt 0:00:00]} 16. Ne5 {[%emt 0:00:10]} Bc6 {[%emt 0:00:43]} 17. Nxc6 {[%emt 0:00:06]} bxc6 {[%emt 0:00:01]} 18. Rb1 {[%emt 0:00:19]} c5 {[%emt 0:00:28]} 19. Rb7 {[%emt 0:00:36]} cxd4 {[%emt 0:01:41]} 20. cxd4 {[%emt 0:00:06]} Bf6 {[%emt 0:00:12]} 21. Be5 {[%emt 0:00:16]} Qd5 {[%emt 0:00:05]} 22. Qf3 {[%emt 0:00:57]} Rfd8 {[%emt 0:01:04]} 23. Qxd5 {[%emt 0:01:12]} Rxd5 {[%emt 0:00:02]} 24. f4 {[%emt 0:00:28]} h5 {[%emt 0:00:24]} 25. h3 {[%emt 0:00:06]} Bxe5 {[%emt 0:00:11]} 26. dxe5 {[%emt 0:00:16]} Rd4 {[%emt 0:00:00]} 27. f5 {[%emt 0:00:11]} Re8 {[%emt 0:01:09]} 28. fxe6 {[%emt 0:00:12]} Rxe6 {[%emt 0:00:23]} 29. Rf1 {[%emt 0:00:01]} Rxe5 {[%emt 0:00:01]} 30. Rfxf7 {[%emt 0:00:07]} Rg5 {[%emt 0:00:00]} 31. Rfc7 {[%emt 0:00:50]} Rxa4 {[%emt 0:00:08]} 32. Rb6 {[%emt 0:00:33]} Ra2 {[%emt 0:00:05]} 33. Kf1 {[%emt 0:00:13]} a5 {[%emt 0:00:21]} 34. h4 {[%emt 0:00:28]} Rgxg2 {[%emt 0:00:26]} 35. Ra6 {[%emt 0:00:12]} Rh2 {[%emt 0:00:15]} 36. Kg1 {[%emt 0:00:23]} Rxh4 {[%emt 0:00:01]} 37. Rc5 {[%emt 0:00:08]} a4 {[%emt 0:00:09]} 38. Raa5 {[%emt 0:00:22]} Rg4+ {[%emt 0:00:04]} 39. Kh1 {[%emt 0:00:14]} h4 {[%emt 0:00:02]} 40. Ra8+ {[%emt 0:00:06]} Kh7 {[%emt 0:00:02]} 41. Rh5+ {[%emt 0:00:01]} Kg6 {[%emt 0:00:01]} 42. Rb5 {[%emt 0:00:16]} Rf4 {[%emt 0:00:03]} 43. Ra6+ {[%emt 0:00:02]} Rf6 {[%emt 0:00:02]} 44. Raa5 {[%emt 0:00:12]} Rf1# {[%emt 0:00:02]} 0-1

[Event "15th Golden Prague Rapid Open"]
[Site "Prague"]
[Date "2019.06.30"]
[Round "3.7"]
[White "Vavrinec, Tomas"]
[Black "Ocelak, Jakub"]
[Result "1-0"]
[ECO "A39"]
[WhiteElo "1994"]
[BlackElo "1701"]
[Annotator "NA"]
[PlyCount "107"]
[EventDate "2019.06.30"]
[EventType "swiss"]
[EventCountry "CZE"]
[SourceTitle "playchess.com"]
[Source "ChessBase"]
[SourceQuality "1"]
[TimeControl "720+3"]

1. c4 {[%emt 0:12:03]} Nf6 {[%emt 0:12:03]} 2. Nc3 {[%emt 0:00:03]} c5 {[%emt 0:00:03]} 3. Nf3 {[%emt 0:00:03]} Nc6 {[%emt 0:00:03]} 4. g3 {[%emt 0:00:03]} g6 5. Bg2 {[%emt 0:00:03]} Bg7 6. O-O {[%emt 0:00:03]} O-O {[%emt 0:00:09]} 7. d4 cxd4 {[%emt 0:00:03]} 8. Nxd4 Qb6 {[%emt 0:00:03]} 9. Nb3 {[%emt 0:00:09]} d6 {[%emt 0:00:03]} 10. Be3 {[%emt 0:00:03]} Qd8 {[%emt 0:00:03]} 11. h3 {[%emt 0:00:03]} Be6 {[%emt 0:00:03]} 12. Nd5 {[%emt 0:00:03]} Rc8 {[%emt 0:00:03]} 13. Rc1 {[%emt 0:00:03]} Ne5 {[%emt 0:00:03]} 14. Nd2 {[%emt 0:00:03]} b6 {[%emt 0:00:03]} 15. Qa4 {[%emt 0:00:03]} Bxd5 {[%emt 0:00:03]} 16. cxd5 {[%emt 0:00:03]} Qd7 {[%emt 0:00:03]} 17. Qxd7 {[%emt 0:00:03]} Nexd7 {[%emt 0:00:03]} 18. b3 {[%emt 0:00:03]} Nc5 {[%emt 0:00:03]} 19. h4 {[%emt 0:00:03]} Nfd7 {[%emt 0:00:03]} 20. Bh3 {[%emt 0:00:03]} f5 {[%emt 0:00:03]} 21. Rfd1 {[%emt 0:00:03]} Nf6 {[%emt 0:00:03]} 22. Nf3 {[%emt 0:00:03]} Nce4 {[%emt 0:00:03]} 23. Ng5 {[%emt 0:00:03]} Nxg5 {[%emt 0:00:03]} 24. hxg5 {[%emt 0:00:03]} Rxc1 {[%emt 0:00:03]} 25. Bxc1 {[%emt 0:00:03]} Ne4 {[%emt 0:00:03]} 26. Bf4 {[%emt 0:00:03]} Rc8 {[%emt 0:00:03]} 27. f3 {[%emt 0:00:03]} Nc3 {[%emt 0:00:03]} 28. Rd2 {[%emt 0:00:03]} Rc5 {[%emt 0:00:03]} 29. e4 {[%emt 0:00:03]} fxe4 {[%emt 0:00:03]} 30. Be6+ {[%emt 0:00:03]} Kf8 {[%emt 0:00:03]} 31. Be3 {[%emt 0:00:03]} Ra5 {[%emt 0:00:03]} 32. a4 {[%emt 0:00:03]} exf3 {[%emt 0:00:03]} 33. Rf2 {[%emt 0:00:03]} Nxd5 {[%emt 0:00:03]} 34. Rxf3+ {[%emt 0:00:03]} Ke8 {[%emt 0:00:03]} 35. Bf2 {[%emt 0:00:03]} Nc7 {[%emt 0:00:03]} 36. Bf7+ {[%emt 0:00:03]} Kd7 {[%emt 0:00:03]} 37. Be3 {[%emt 0:00:03]} Re5 {[%emt 0:00:03]} 38. Kg2 {[%emt 0:00:03]} Ne6 {[%emt 0:00:03]} 39. Bf4 {[%emt 0:00:03]} Re2+ {[%emt 0:00:03]} 40. Kf1 {[%emt 0:00:03]} Rb2 {[%emt 0:00:03]} 41. Bg8 {[%emt 0:00:03]} Nf8 {[%emt 0:00:03]} 42. Bc4 {[%emt 0:00:03]} e5 {[%emt 0:00:03]} 43. Be3 {[%emt 0:00:03]} Rb1+ {[%emt 0:00:03]} 44. Ke2 {[%emt 0:00:03]} Ke8 {[%emt 0:00:03]} 45. Rf7 {[%emt 0:00:03]} Bh8 {[%emt 0:00:03]} 46. Rxa7 {[%emt 0:00:03]} Rb2+ {[%emt 0:00:03]} 47. Kd3 {[%emt 0:00:03]} Rb1 {[%emt 0:00:03]} 48. Rb7 {[%emt 0:00:03]} Rd1+ {[%emt 0:00:03]} 49. Ke2 {[%emt 0:00:03]} Rb1 {[%emt 0:00:03]} 50. Rxb6 {[%emt 0:00:03]} Kd7 {[%emt 0:00:03]} 51. Rb7+ {[%emt 0:00:03]} Kc6 52. Rf7 {[%emt 0:00:03]} Rb2+ {[%emt 0:00:06]} 53. Kd3 {[%emt 0:00:03]} Ne6 {[%emt 0:00:03]} 54. Bxe6 {[%emt 0:00:03]} 1-0

[Event "15th Golden Prague Rapid Open"]
[Site "Prague"]
[Date "2019.06.30"]
[Round "3.8"]
[White "Burita, Dobroslav"]
[Black "Kalousek, Zdenek"]
[Result "0-1"]
[ECO "B22"]
[WhiteElo "1614"]
[BlackElo "2005"]
[Annotator "NA"]
[PlyCount "124"]
[EventDate "2019.06.30"]
[EventType "swiss"]
[EventCountry "CZE"]
[SourceTitle "playchess.com"]
[Source "ChessBase"]
[SourceQuality "1"]
[TimeControl "720+3"]

1. e4 {[%emt 0:00:00]} Nf6 {[%emt 0:00:00]} 2. e5 {[%emt 0:00:02]} Nd5 {[%emt 0:00:00]} 3. Bc4 {[%emt 0:00:08]} Nb6 {[%emt 0:00:00]} 4. Bb3 {[%emt 0:00:01]} c5 {[%emt 0:00:00]} 5. c3 {[%emt 0:00:19]} c4 {[%emt 0:00:13]} 6. Bc2 {[%emt 0:00:02]} Nc6 {[%emt 0:00:03]} 7. Nf3 {[%emt 0:00:11]} Qc7 {[%emt 0:00:02]} 8. Qe2 {[%emt 0:00:16]} g6 {[%emt 0:00:07]} 9. Na3 {[%emt 0:00:45]} Bg7 {[%emt 0:00:42]} 10. Nxc4 {[%emt 0:00:16]} Nxc4 {[%emt 0:00:00]} 11. Qxc4 {[%emt 0:00:08]} Bxe5 {[%emt 0:00:11]} 12. Nxe5 {[%emt 0:00:14]} Qxe5+ {[%emt 0:00:01]} 13. Qe4 {[%emt 0:00:15]} d5 {[%emt 0:00:07]} 14. Qxe5 {[%emt 0:00:07]} Nxe5 {[%emt 0:00:01]} 15. d4 {[%emt 0:00:05]} Nc6 {[%emt 0:00:07]} 16. O-O {[%emt 0:00:14]} h5 {[%emt 0:00:32]} 17. Bg5 {[%emt 0:00:20]} O-O {[%emt 0:00:15]} 18. Rfe1 {[%emt 0:00:27]} e6 {[%emt 0:01:14]} 19. Bf6 {[%emt 0:00:32]} Bd7 {[%emt 0:00:17]} 20. h3 {[%emt 0:00:55]} Rac8 {[%emt 0:00:04]} 21. g4 {[%emt 0:00:17]} e5 {[%emt 0:00:57]} 22. gxh5 {[%emt 0:01:02]} exd4 {[%emt 0:00:04]} 23. cxd4 {[%emt 0:01:25]} Nxd4 {[%emt 0:00:40]} 24. Bxd4 {[%emt 0:00:08]} Rxc2 {[%emt 0:00:01]} 25. hxg6 {[%emt 0:00:19]} fxg6 {[%emt 0:00:03]} 26. Re7 {[%emt 0:00:18]} Rf7 {[%emt 0:00:01]} 27. Rae1 {[%emt 0:00:02]} b6 {[%emt 0:00:46]} 28. h4 {[%emt 0:00:24]} Kf8 {[%emt 0:01:18]} 29. Rxf7+ {[%emt 0:00:33]} Kxf7 {[%emt 0:00:01]} 30. Re3 {[%emt 0:00:36]} Bf5 {[%emt 0:00:26]} 31. Ra3 {[%emt 0:00:18]} Rc7 {[%emt 0:00:43]} 32. Rc3 {[%emt 0:00:28]} Rb7 {[%emt 0:00:17]} 33. Rc6 {[%emt 0:00:19]} Ke7 {[%emt 0:00:35]} 34. Kh2 {[%emt 0:00:41]} Kd7 {[%emt 0:00:21]} 35. Rf6 {[%emt 0:00:03]} Ke7 {[%emt 0:00:01]} 36. Rc6 {[%emt 0:00:02]} Be6 {[%emt 0:00:47]} 37. Kg3 {[%emt 0:00:06]} Kd7 {[%emt 0:00:01]} 38. Rc3 {[%emt 0:00:07]} a5 {[%emt 0:00:17]} 39. Kf4 {[%emt 0:00:16]} Ke7 {[%emt 0:01:07]} 40. Kg5 {[%emt 0:00:03]} Kf7 {[%emt 0:00:02]} 41. Be5 {[%emt 0:00:06]} b5 {[%emt 0:00:54]} 42. Rc7+ {[%emt 0:00:04]} Rxc7 {[%emt 0:00:00]} 43. Bxc7 {[%emt 0:00:01]} d4 {[%emt 0:00:00]} 44. Bxa5 {[%emt 0:00:04]} Bxa2 {[%emt 0:00:00]} 45. Bd2 {[%emt 0:00:10]} Bb1 {[%emt 0:00:02]} 46. h5 {[%emt 0:00:07]} gxh5 47. Kxh5 {[%emt 0:00:01]} Kf6 {[%emt 0:00:04]} 48. Kg4 {[%emt 0:00:10]} Ke5 {[%emt 0:00:11]} 49. Kf3 {[%emt 0:00:03]} Bd3 {[%emt 0:00:12]} 50. Bf4+ {[%emt 0:00:08]} Kd5 {[%emt 0:00:00]} 51. Bd2 {[%emt 0:00:07]} Kc4 {[%emt 0:00:03]} 52. b4 {[%emt 0:00:20]} Kb3 {[%emt 0:00:02]} 53. Kf4 {[%emt 0:00:08]} Kc2 {[%emt 0:00:01]} 54. Be1 {[%emt 0:00:20]} Bc4 {[%emt 0:00:36]} 55. Ke4 {[%emt 0:00:05]} d3 {[%emt 0:00:01]} 56. f4 {[%emt 0:00:02]} d2 {[%emt 0:00:07]} 57. Bxd2 {[%emt 0:00:03]} Kxd2 {[%emt 0:00:01]} 58. f5 {[%emt 0:00:02]} Kc3 {[%emt 0:00:00]} 59. f6 {[%emt 0:00:02]} Kxb4 {[%emt 0:00:01]} 60. Kd4 {[%emt 0:00:04]} Kb3 {[%emt 0:00:02]} 61. Kc5 {[%emt 0:00:04]} b4 {[%emt 0:00:01]} 62. Kd4 {[%emt 0:00:02]} Bf7 {[%emt 0:00:01]} 0-1

[Event "15th Golden Prague Rapid Open"]
[Site "Prague"]
[Date "2019.06.30"]
[Round "3.9"]
[White "Nedoma, Marek"]
[Black "Harasta, Frantisek"]
[Result "1-0"]
[ECO "A41"]
[WhiteElo "1984"]
[BlackElo "1567"]
[Annotator "NA"]
[PlyCount "49"]
[EventDate "2019.06.30"]
[EventType "swiss"]
[EventCountry "CZE"]
[SourceTitle "playchess.com"]
[Source "ChessBase"]
[SourceQuality "1"]
[TimeControl "720+3"]

1. d4 {[%emt 0:00:00]} g6 {[%emt 0:00:00]} 2. Bf4 {[%emt 0:00:12]} d6 {[%emt 0:00:09]} 3. Nf3 {[%emt 0:00:03]} Bg7 {[%emt 0:00:02]} 4. c3 {[%emt 0:00:01]} Bg4 {[%emt 0:00:13]} 5. Nbd2 {[%emt 0:00:07]} Nf6 {[%emt 0:00:08]} 6. Qb3 {[%emt 0:00:07]} Qc8 {[%emt 0:01:35]} 7. e4 {[%emt 0:00:23]} O-O {[%emt 0:00:21]} 8. Be2 {[%emt 0:00:34]} c6 {[%emt 0:00:37]} 9. h3 {[%emt 0:00:03]} Bxf3 {[%emt 0:00:03]} 10. Bxf3 {[%emt 0:00:07]} Nbd7 {[%emt 0:00:44]} 11. e5 {[%emt 0:00:37]} dxe5 {[%emt 0:00:32]} 12. dxe5 {[%emt 0:10:22]} Nd5 {[%emt 0:02:03]} 13. Bxd5 {[%emt 0:00:00]} cxd5 {[%emt 0:00:02]} 14. Qxd5 {[%emt 0:00:00]} Nb6 {[%emt 0:00:28]} 15. Qe4 {[%emt 0:00:00]} Rd8 {[%emt 0:00:22]} 16. O-O {[%emt 0:00:00]} Nd7 {[%emt 0:00:38]} 17. e6 {[%emt 0:00:00]} Nf6 {[%emt 0:00:14]} 18. exf7+ {[%emt 0:00:00]} Kxf7 {[%emt 0:00:02]} 19. Qe2 {[%emt 0:00:00]} Qf5 {[%emt 0:00:18]} 20. Bg3 {[%emt 0:00:00]} Rac8 {[%emt 0:00:43]} 21. Rfe1 {[%emt 0:00:00]} e6 {[%emt 0:00:32]} 22. Nb3 {[%emt 0:00:00]} Nh5 {[%emt 0:00:54]} 23. Bh4 {[%emt 0:00:00]} Nf4 {[%emt 0:00:41]} 24. Qf3 {[%emt 0:00:00]} Rd3 {[%emt 0:00:10]} 25. Qxb7+ {[%emt 0:00:39] Rdd8 Qf3} 1-0

[Event "15th Golden Prague Rapid Open"]
[Site "Prague"]
[Date "2019.06.30"]
[Round "3.10"]
[White "Zvacek, Antonin"]
[Black "Holub, Adam"]
[Result "0-1"]
[ECO "B26"]
[WhiteElo "1808"]
[BlackElo "1433"]
[Annotator "NA"]
[PlyCount "78"]
[EventDate "2019.06.30"]
[EventType "swiss"]
[EventCountry "CZE"]
[SourceTitle "playchess.com"]
[Source "ChessBase"]
[SourceQuality "1"]
[TimeControl "720+3"]

1. e4 {[%emt 0:00:04]} c5 {[%emt 0:00:00]} 2. Nc3 {[%emt 0:00:03]} Nc6 {[%emt 0:00:01]} 3. g3 {[%emt 0:00:01]} d6 {[%emt 0:00:04]} 4. Bg2 {[%emt 0:00:02]} g6 {[%emt 0:00:02]} 5. d3 {[%emt 0:00:04]} Bg7 {[%emt 0:00:02]} 6. Be3 {[%emt 0:00:04]} Nf6 {[%emt 0:00:04]} 7. h3 {[%emt 0:00:06]} O-O {[%emt 0:00:04]} 8. Qd2 {[%emt 0:00:02]} Rb8 {[%emt 0:00:06]} 9. Nge2 {[%emt 0:00:18]} a6 {[%emt 0:00:06]} 10. f4 {[%emt 0:00:15]} Bd7 {[%emt 0:00:11]} 11. O-O {[%emt 0:00:25]} b5 {[%emt 0:00:06]} 12. e5 {[%emt 0:01:18]} dxe5 {[%emt 0:00:46]} 13. Bxc5 {[%emt 0:00:15]} exf4 {[%emt 0:00:15]} 14. Nxf4 {[%emt 0:00:39]} Re8 {[%emt 0:00:33]} 15. Rae1 {[%emt 0:01:14]} e6 {[%emt 0:00:24]} 16. a3 {[%emt 0:01:21]} Qc7 {[%emt 0:01:12]} 17. b4 {[%emt 0:00:48]} Bc8 {[%emt 0:00:24]} 18. g4 {[%emt 0:01:26]} Bb7 {[%emt 0:00:22]} 19. Nce2 {[%emt 0:00:36]} Rbd8 {[%emt 0:00:18]} 20. d4 {[%emt 0:00:21]} Nd7 {[%emt 0:00:16]} 21. c3 {[%emt 0:00:18]} Nxc5 {[%emt 0:00:05]} 22. bxc5 {[%emt 0:00:15]} Rd7 {[%emt 0:00:43]} 23. Kh1 {[%emt 0:00:15]} Rdd8 {[%emt 0:00:57]} 24. Nd3 {[%emt 0:00:08]} Na5 {[%emt 0:00:11]} 25. Qf4 {[%emt 0:00:21]} Qxf4 {[%emt 0:00:08]} 26. Ndxf4 {[%emt 0:00:17]} Bxg2+ {[%emt 0:00:02]} 27. Kxg2 {[%emt 0:00:02]} Nc4 {[%emt 0:00:00]} 28. Ng3 {[%emt 0:00:30]} Nxa3 {[%emt 0:00:23]} 29. Ra1 {[%emt 0:00:07]} Nc4 {[%emt 0:00:01]} 30. Rfb1 {[%emt 0:00:30]} Ra8 {[%emt 0:00:28]} 31. Ne4 {[%emt 0:00:08]} Red8 {[%emt 0:00:06]} 32. Ra2 {[%emt 0:00:16]} e5 {[%emt 0:00:35]} 33. Ne2 {[%emt 0:00:22]} exd4 {[%emt 0:00:03]} 34. cxd4 {[%emt 0:00:17]} Bxd4 {[%emt 0:00:10]} 35. Kf3 {[%emt 0:00:05]} Bg7 {[%emt 0:00:06]} 36. Rb3 {[%emt 0:00:12]} f5 {[%emt 0:00:17]} 37. gxf5 {[%emt 0:00:08]} gxf5 {[%emt 0:00:00]} 38. Ng5 {[%emt 0:00:08]} Nd2+ {[%emt 0:00:06]} 39. Rxd2 {[%emt 0:00:10]} Rxd2 {[%emt 0:00:01]} 0-1